Workbook

Sheet Pasiūlymas
A1: Perkančioji organizacija, kuriai teikiamas pasiūlymas: | C1: VŠĮ Kauno klinikinė ligoninė
B3: PASIŪLYMAS
B4: Vienkartinės medicininės priemonės
A6: Data: | B6: 2018-04-12
A7: Nr.: | B7: 43202
A8: Vieta: | B8: Vilnius
A10: Tiekėjo pavadinimas /Jeigu dalyvauja ūkio subjektų grupė, surašomi visi dalyvių pavadinimai/ | C10: UAB Ilsanta
A11: Įmonės kodas /Jeigu dalyvauja ūkio subjektų grupė, surašomi visi dalyvių kodai/ | C11: 110498671
A12: PVM mokėtojo kodas /Jeigu dalyvauja ūkio subjektų grupė, surašomi visi dalyvių kodai/ | C12: LT104986716
A13: Banko pavadinimas, banko kodas, sąskaitos Nr. | C13: Luminor
A14: Tiekėjo adresas /Jeigu dalyvauja ūkio subjektų grupė, surašomi visi dalyvių adresai/ | C14: Goštauto g/40A
A15: Telefono numeris | C15: 868794866
A16: Fakso numeris | C16: 852691611
A17: El. pašto adresas | C17: sandra@ilsanta.lt
A18: Asmens, pasirašiusio pasiūlymą saugiu elektroniniu parašu, vardas, pavardė, pareigos | C18: Sandra Čaikė
A19: Asmens, įgalioto pasirašyti sutartį, vardas, pavardė, pareigos | C19: Tomas Godelis
A23: 1. Šiuo pasiūlymu pažymime, kad sutinkame su visomis pirkimo sąlygomis, nustatytomis: 1) pirkimo skelbime, paskelbtame Viešųjų pirkimų įstatymo nustatyta tvarka; 2) pirkimo sąlygose ir kituose pirkimo dokumentuose (jų paaiškinimuose, papildymuose).
A25: Siūlomas pirkimo objektas visiškai atitinka pirkimo sąlygose nustatytus reikalavimus ir jo kaina yra:
A28: Nr. | B28: Pavadinimas | C28: Kiekis | D28: Mato vienetas | E28: Kaina be PVM | F28: Suma be PVM | G28: Siūlomos prekės pavadinimas ir/ar gamintojas | H28: Siūlomos prekės parametrai
A29: 51. | B29: Intubacinių vamzdelių pravedėjas sunkioms intubacijoms
A30: 51.1. | B30: Intubacinių vamzdelių pravedėjas sunkioms intubacijoms | C30: 4 | D30: Vnt.
A31: 51.1.1. | B31: Tinka 6,5-8,5mm dydžio intubaciniams vamzdeliams
A32: 51.1.2. | B32: Daugkartinis
A33: 51.1.3. | B33: Su vamzdelį stabilizuojančiu kamščiu
A34: 51.1.4. | B34: Lanksčiu galu, kuris yra reguliojamas rankenos pagalba
A35: 51.1.5. | B35: Pagamintas iš nerūdyjančio plieno
E36: Suma be PVM
E37: PVM suma
E38: Suma su PVM
A40: 52. | B40: Intubaciniai stiletai
A41: 52.1. | B41: Intubacinio vamzdelio stiletas 2,5-4,5mm | C41: 30 | D41: Vnt.
A42: 52.2. | B42: Intubacinio vamzdelio stiletas 5-8mm | C42: 100 | D42: Vnt.
A43: 52.3. | B43: Intubacinio vamzdelio stiletas 8,5-10mm | C43: 600 | D43: Vnt.
A44: 52.4. | B44: Intubacinio vamzdelio stiletas 2,1-2,3mm (vaikiškas) | C44: 30 | D44: Vnt.
E45: Suma be PVM
E46: PVM suma
E47: Suma su PVM
A49: 53. | B49: Orofaringiniai vamzdeliai
A50: 53.1. | B50: Orofaringinis vamzdelis 000 | C50: 20 | D50: Vnt.
A51: 53.1.1. | B51: Ilgis 30mm +/-1mm
A52: 53.1.2. | B52: Vienkartiniai, kliniškai švarūs, skairūs
A53: 53.1.3. | B53: Gaminio sudėtyje nėra latekso
A54: 53.1.4. | B54: Spalvinis numerių kodavimas pagal dydžius
A55: 53.2. | B55: Orofaringinis vamzdelis 00 | C55: 20 | D55: Vnt.
A56: 53.2.1. | B56: Ilgis 40mm +/-1mm
A57: 53.2.2. | B57: Vienkartiniai, kliniškai švarūs, skairūs
A58: 53.2.3. | B58: Gaminio sudėtyje nėra latekso
A59: 53.2.4. | B59: Spalvinis numerių kodavimas pagal dydžius
A60: 53.3. | B60: Orofaringinis vamzdelis 0 | C60: 20 | D60: Vnt.
A61: 53.3.1. | B61: Ilgis 50mm +/-1mm
A62: 53.3.2. | B62: Vienkartiniai, kliniškai švarūs, skairūs
A63: 53.3.3. | B63: Gaminio sudėtyje nėra latekso
A64: 53.3.4. | B64: Spalvinis numerių kodavimas pagal dydžius
A65: 53.4. | B65: Orofaringinis vamzdelis 1 | C65: 20 | D65: Vnt.
A66: 53.4.1. | B66: Ilgis 60mm +/-1mm
A67: 53.4.2. | B67: Vienkartiniai, kliniškai švarūs, skairūs
A68: 53.4.3. | B68: Gaminio sudėtyje nėra latekso
A69: 53.4.4. | B69: Spalvinis numerių kodavimas pagal dydžius
A70: 53.5. | B70: Orofaringinis vamzdelis 2 | C70: 60 | D70: Vnt.
A71: 53.5.1. | B71: Ilgis 70mm +/-1mm
A72: 53.5.2. | B72: Vienkartiniai, kliniškai švarūs, skairūs
A73: 53.5.3. | B73: Gaminio sudėtyje nėra latekso
A74: 53.5.4. | B74: Spalvinis numerių kodavimas pagal dydžius
A75: 53.6. | B75: Orofaringinis vamzdelis 3 | C75: 70 | D75: Vnt.
A76: 53.6.1. | B76: Ilgis 80mm +/-1mm
A77: 53.6.2. | B77: Vienkartiniai, kliniškai švarūs, skairūs
A78: 53.6.3. | B78: Gaminio sudėtyje nėra latekso
A79: 53.6.4. | B79: Spalvinis numerių kodavimas pagal dydžius
A80: 53.7. | B80: Orofaringinis vamzdelis 4 | C80: 900 | D80: Vnt.
A81: 53.7.1. | B81: Ilgis 90mm +/-1mm
A82: 53.7.2. | B82: Vienkartiniai, kliniškai švarūs, skairūs
A83: 53.7.3. | B83: Gaminio sudėtyje nėra latekso
A84: 53.7.4. | B84: Spalvinis numerių kodavimas pagal dydžius
A85: 53.8. | B85: Orofaringinis vamzdelis 5 | C85: 700 | D85: Vnt.
A86: 53.8.1. | B86: Ilgis 100mm +/-1mm
A87: 53.8.2. | B87: Vienkartiniai, kliniškai švarūs, skairūs
A88: 53.8.3. | B88: Gaminio sudėtyje nėra latekso
A89: 53.8.4. | B89: Spalvinis numerių kodavimas pagal dydžius
A90: 53.9. | B90: Orofaringinis vamzdelis 6 | C90: 40 | D90: Vnt.
A91: 53.9.1. | B91: Ilgis 110-120mm
A92: 53.9.2. | B92: Vienkartiniai, kliniškai švarūs, skairūs
A93: 53.9.3. | B93: Gaminio sudėtyje nėra latekso
A94: 53.9.4. | B94: Spalvinis numerių kodavimas pagal dydžius
E95: Suma be PVM
E96: PVM suma
E97: Suma su PVM
A99: 54. | B99: Prailginimo linijos
A100: 54.1. | B100: Prailginimo linija 100cm +/- 5cm | C100: 100 | D100: Vnt.
A101: 54.2. | B101: Prailginimo linija 150cm +/- 5cm | C101: 11000 | D101: Vnt.
A102: 54.3. | B102: Prailginimo linija 150cm +/- 5cm | C102: 750 | D102: Vnt.
A103: 54.3.1. | B103: Jungianti prie lašelinių sistemų 2 diametrų (plona - infuzinei sistemai, storesnė - infuzinei pompai)
A104: 54.4. | B104: Prailginimo linija 200cm +/- 5cm | C104: 30 | D104: Vnt.
A105: 54.5. | B105: Prailginimo linija 150cm +/- 5cm | C105: 30 | D105: Vnt.
A106: 54.5.1. | B106: Juoda
E107: Suma be PVM
E108: PVM suma
E109: Suma su PVM
A111: 55. | B111: Prailginimo linija 10cm ilgio su 3 beadatiniais konektoriais ir 3 skirtingų spalvų spaustukais
A112: 55.1. | B112: Prailginimo linija 10cm ilgio su 3 beadatiniais konektoriais ir 3 skirtingų spalvų spaustukais | C112: 170 | D112: Vnt.
A113: 55.1.1. | B113: Prailginimo linija su skaidriu konektoriumi, tinkančiu leisti vaistams, kraujui ir kraujo produktams, biologiniams skysčiams ir lipidams, chemoterepiniams vaistams
A114: 55.1.2. | B114: Nėra latekso, metalinių dalių, vožtuvo
A115: 55.1.3. | B115: Lygus kontaktinis valomasisi paviršius
A116: 55.1.4. | B116: Konstrukcija - pasiskirsinti membrana su vidine kaniule
A117: 55.1.5. | B117: Gali būti nepertraukiamai naudojamas iki 7 parų
A118: 55.1.6. | B118: Neutralaus poslinkio - 0,004ml
A119: 55.1.7. | B119: Tėkmė ≥ 350 ml/min
A120: 55.1.8. | B120: Svoris ≤ 1 g
A121: 55.1.9. | B121: Liekamasis tūris ≤ 0,05 ml
A122: 55.1.10. | B122: Prailginimo linijos storis 2,5mm
E123: Suma be PVM
E124: PVM suma
E125: Suma su PVM
A127: 56. | B127: Monitoringo linija CO2 matavimui
A128: 56.1. | B128: Monitoringo linija | C128: 100 | D128: Vnt.
A129: 56.1.1. | B129: Vienkartinė, kliniškai švari
A130: 56.1.2. | B130: Vamzdelis skaidrus, minkštas, lankstus
A131: 56.1.3. | B131: Suspaudus vamzdelį neturi likti likutinės deformacijos žymių
A132: 56.1.4. | B132: Abiem užsukamonis vyriškos formos Luer jungtimis
A133: 56.1.5. | B133: Ilgis 3-4,5m
A134: 56.2. | B134: Monitoringo linija | C134: 40 | D134: Vnt.
A135: 56.2.1. | B135: Vienkartinė, kliniškai švari
A136: 56.2.2. | B136: Vamzdelis skaidrus, minkštas, lankstus
A137: 56.2.3. | B137: Suspaudus vamzdelį neturi likti likutinės deformacijos žymių
A138: 56.2.4. | B138: Viena vyriškos formos Luer jungtimi, kita moteriškos formos jungtimi
A139: 56.2.5. | B139: Ilgis ne mažiau 3m
E140: Suma be PVM
E141: PVM suma
E142: Suma su PVM
A144: 57. | B144: Lašelinės
A145: 57.1. | B145: Vienkartinė infuzinė lašelinė | C145: 300000 | D145: Vnt.
A146: 57.1.1. | B146: Su užmaunama adata
A147: 57.2. | B147: Vienkartinė transfuzinė lašelinė | C147: 10000 | D147: Vnt.
A148: 57.2.1. | B148: Su užmaunama adata
A149: 57.3. | B149: Vienkartinė infuzinė lašelinė | C149: 50 | D149: Vnt.
A150: 57.3.1. | B150: Su adata
A151: 57.3.2. | B151: Tamsi
E152: Suma be PVM
E153: PVM suma
E154: Suma su PVM
A156: 58. | B156: 4 kranelių blokas su 5 beadatiniais konektoriais
A157: 58.1. | B157: 4 kranelių blokas su 5 beadatiniais konektoriais | C157: 50 | D157: Vnt.
A158: 58.1.1. | B158: Neišardomas kranelių blokas su prisukamu laikikliu prie lašelinė stovo
A159: 58.1.2. | B159: Konektoriai, tinkantys leisti vaistams, kraujui ir kraujo produktams, biologiniams skysčiams ir lipidams, chemoterepiniams vaistams
A160: 58.1.3. | B160: Nėra latekso, metalinių dalių, vožtuvo
A161: 58.1.4. | B161: Lygus kontaktinis valomasisi paviršius
A162: 58.1.5. | B162: Konstrukcija - pasiskirianti membrana su vidine kaniule
A163: 58.1.6. | B163: Gali būti nepertraukiamai naudojamas iki 7 parų
A164: 58.1.7. | B164: Neutralaus poslinkio - 0,004ml
A165: 58.1.8. | B165: Tėkmė ≥ 350 ml/min
A166: 58.1.9. | B166: Svoris ≤ 1 g
A167: 58.1.10. | B167: Liekamasis tūris ≤ 0,05 ml
E168: Suma be PVM
E169: PVM suma
E170: Suma su PVM
A172: 59. | B172: Trigubas beadatinis konektorius su prailginimo linija
A173: 59.1. | B173: Trigubas beadatinis konektorius su prailginimo linija | C173: 50 | D173: Vnt.
A174: 59.1.1. | B174: Tinkantis kraujui ir kraujo produktams, biologiniams skysčiams ir lipidams, suderinamas su įprastiniais chemoterapiniais vaistais ir tirpikliais
A175: 59.1.2. | B175: Sudėtyje nėra latekso, metalinių detalių
A176: 59.1.3. | B176: Konektorius neutralaus slėgio +/- 0,01ml
A177: 59.1.4. | B177: Gali būti nepertraukiamai naudojams iki 3 parų
A178: 59.1.5. | B178: Maksimalus prisijungimo limitas ne mažiau 140 kartų
E179: Suma be PVM
E180: PVM suma
E181: Suma su PVM
A183: 60. | B183: Autogeninė transfuzijos sistema
A184: 60.1. | B184: Autogeninė transfuzijos sistema | C184: 50 | D184: Vnt.
A185: 60.1.1. | B185: Sterili sistema į kurios rinkinį įeina:
A186: 60.1.2. | B186: 2 poliuretano medžiagos atraumatiniai CH18 drenai
A187: 60.1.3. | B187: Y jungtis
A188: 60.1.4. | B188: 2 troakarai
A189: 60.1.5. | B189: 350ml žemo vakuumo 100mm/Hg (+/-5%) "dumplės" su dviem išleidimo vožtuvais
A190: 60.1.6. | B190: Du 600ml talpos maišeliai autotransfuzijai su integruotais 200μm filtrais, turiniui neleidžiančiais grįžti atgal vožtuvais ir etiketėmis procedūros informacijai įrašyti
A191: 60.1.7. | B191: Visos sistemos dalys turi būti supakuotos vienoje pakuotėje su sterilumo indikatoriumi
A192: 60.1.8. | B192: Sistemos naudojimo laikas - iki 12 valandų (pateikti tai patvirtinančius dokumentus)
A193: 60.1.9. | B193: Kiekvienoje pakuotėje turi būti išsami naudojimosi instrukcija lietuvių kalba. Kiekvienoje pakuotėje turi būti išsami naudojimosi instrukcija lietuvių kalba. Kiekvienoje pakuotėje turi būti išsami naudojimosi instrukcija lietuvių kalba. Kiekvienoje pakuotėje turi būti išsami naudojimosi instrukcija lietuvių kalba. Kiekvienoje pakuotėje turi būti išsami naudojimo instrukcija lietuvių kalba
A194: 60.2. | B194: Transfuzijos filtras | C194: 50 | D194: Vnt.
A195: 60.2.1. | B195: 40μm
A196: 60.2.2. | B196: Sterilus, supakuotas indvidualioje pakuotėje
E197: Suma be PVM
E198: PVM suma
E199: Suma su PVM
A201: 61. | B201: Lašinės sistemos linijos
A202: 61.1. | B202: Lašinės sistemos linijos | C202: 600 | D202: Vnt.
A203: 61.1.1. | B203: Skirtos darbui naudojant Volumed μVP7000 chroma tūrinę pompą
E204: Suma be PVM
E205: PVM suma
E206: Suma su PVM
A208: 62. | B208: Lašinės sistemos
A209: 62.1. | B209: Lašinės sistemos tūrinei infuzinei pompai DF-12M | C209: 300 | D209: Vnt.
E210: Suma be PVM
E211: PVM suma
E212: Suma su PVM
A214: 63. | B214: Armuoti intubaciniai vamzdeliai
A215: 63.1. | B215: Armuotas intubacinis vamzdelis Nr.3,5 LOR operacijoms | C215: 60 | D215: Vnt.
A216: 63.1.1. | B216: Sterilūs, vienkartiniai, supakuoti po 1vnt.
A217: 63.1.2. | B217: Gaminio sudėtyje nėra latekso
A218: 63.1.3. | B218: Į armuoto endotrachėjinio vamzdelio sieneles spiralės forma yra integruotas metalinis laidas
A219: 63.1.4. | B219: Vamzdelio distalinėje dalyje, dešinėje yra angelė. Distalinės dalies bei šoninės angelės kraštai yra švelnūs/glotnūs (užapvalinti), netraumuojantys gleivinės
A220: 63.1.5. | B220: Proksimaliniame gale yra jungtis; švirkšto prijungimo juosta yra Luer - Lock tipo; yra užpildymo balionėlis ir kontrolinė manžetė
A221: 63.1.6. | B221: Vamzdelio mova (balionas) yra apvalios, pailgos ("cilindro") formos, didelio tūrio, žemo spaudimo ir mažo diametro
... 414 more rows

Sheet Subtiekėjai
A2: Sutarties vykdymui numatome pasitelkti šiuos subtiekėjus / subteikėjus / subrangovus (įrašyti visus subtiekėjus / subteikėjus / subrangovus nepriklausomai nuo tiekiamų prekių/ teikiamų paslaugų/ atliekamų darbų vertės):
A4: Subtiekėjo / subteikėjo / subrangovo (-ų) pavadinimas (-ai) | C4: Adresas | F4: Trumpas aprašymas | I4: Procentas nuo pasiūlymo kainos be PVM
A11: Jeigu pirkimo dokumentų 18 punkte numatytas subtiekimo / subteikimo / subrangos apribojimas: Mes patvirtiname, kad subtiekėjams / subteikėjams / subrangovams (tiekėjams, kuriuos pasamdysime dalies sutartyje numatytų prekių tiekimui /paslaugų teikimui / darbų atlikimui) perduodamų tiekti prekių / teikti paslaugų/ atlikti darbų dalis neviršys proc. pasiūlymo kainos be PVM.
A13: Mes patvirtiname, kad esame / nesame (nereikalingą išbraukti) laikomi asocijuotais (susijusiais) su Perkančiąja organizacija pagal Lietuvos Respublikoje galiojančių teisės aktų (Lietuvos Respublikos pelno mokesčio, Lietuvos Respublikos pridėtinės vertės mokesčio ir Lietuvos Respublikos gyventojų pajamų mokesčio įstatymų) nuostatas.
A15: Kartu su pasiūlymu pateikiami šie dokumentai:
A17: Eil.Nr. | B17: "Pateiktų skaitmeninių dokumentų (ar jų kopijų) pavadinimas (pasiūlymą sudarančių konfidencialių dokumentų pavadinimai pažymėti prierašu KONFIDENCIALU)" | H17: Prisegtos bylos (failo) pavadinimas
C18: Igaliojimas pasirasyti dokumentus | H18: Igaliojimas pasirasyti dokumentus
C19: Gamintoju igaliojimai | H19: Gamintoju igaliojimai
C20: Sertifikatai | H20: Sertifikatai
C21: Katalogai | H21: Katalogai
A25: Pasiūlymo galiojimo užtikrinimui pateikiame :
A27: (Nurodyti užtikrinimo būdą, dydį, dokumentus)
A29: Pasiūlymas galioja iki termino, nustatyto pirkimo dokumentuose. Pasiūlymo neatskiriama dalis yra (rašoma, jeigu buvo reikalauta prie pasiūlymo pridėti atitinkamą dokumentą)
A33: Tiekėjo arba jo įgalioto asmens pareigų pavadinimas | E33: Sandra Čaikė
A36: Pasirašančio asmens vardas ir pavardė | E36: Sandra Čaikė
A39: **kadangi visas pasiūlymas pasirašomas saugiu elektroniniu parašu, šio dokumento atskirai pasirašyti neprivaloma.
A100: 563-2
